[Event "Titled Tuesday Blitz January 03 Early 2023"]
[White "Xiong, Jeffery"]
[Black "Terry, Renato"]
[WhiteFideId "2047640"]
[BlackFideId "3803457"]
[WhiteElo "2692"]
[BlackElo "2520"]
[Result "1/2-1/2"]
[Round "11"]
[TimeControl "180+2"]
[Date "2023.01.03"]
[WhiteClock "0:00:06"]
[BlackClock "0:00:04"]

1. c4 {[%clk 0:02:53]}  e5 {[%clk 0:02:58]} 2. Nc3 {[%clk 0:02:51]}  Nc6 {[%clk 0:02:59]} 3. Nf3 {[%clk 0:02:52]}  f5 {[%clk 0:02:58]} 4. d4 {[%clk 0:02:47]}  e4 {[%clk 0:02:59]} 5. Ne5 {[%clk 0:02:47]}  Nf6 {[%clk 0:02:58]} 6. Bf4 {[%clk 0:02:44]}  Nh5 {[%clk 0:02:43]} 7. e3 {[%clk 0:02:38]}  Nxf4 {[%clk 0:02:42]} 8. exf4 {[%clk 0:02:39]}  g6 {[%clk 0:02:37]} 9. c5 {[%clk 0:02:38]}  d6 {[%clk 0:02:33]} 10. Nxc6 {[%clk 0:02:26]}  bxc6 {[%clk 0:02:34]} 11. d5 {[%clk 0:02:27]}  dxc5 {[%clk 0:02:23]} 12. dxc6 {[%clk 0:02:27]}  Qxd1+ {[%clk 0:02:20]} 13. Rxd1 {[%clk 0:02:28]}  Bd6 {[%clk 0:02:20]} 14. g3 {[%clk 0:02:16]}  Be6 {[%clk 0:02:20]} 15. Ba6 {[%clk 0:02:15]}  Rb8 {[%clk 0:02:13]} 16. Bb7 {[%clk 0:02:06]}  c4 {[%clk 0:01:40]} 17. f3 {[%clk 0:02:06]}  exf3 {[%clk 0:01:35]} 18. Kf2 {[%clk 0:02:06]}  Kf7 {[%clk 0:01:20]} 19. Rhe1 {[%clk 0:02:06]}  Bc8 {[%clk 0:01:12]} 20. Nb5 {[%clk 0:01:10]}  Bxb7 {[%clk 0:01:11]} 21. cxb7 {[%clk 0:01:11]}  Rxb7 {[%clk 0:01:11]} 22. Rxd6 {[%clk 0:01:11]}  Rxb5 {[%clk 0:01:11]} 23. Rd7+ {[%clk 0:01:10]}  Kf6 {[%clk 0:01:12]} 24. Rxc7 {[%clk 0:01:11]}  Rxb2+ {[%clk 0:01:12]} 25. Kxf3 {[%clk 0:01:11]}  Rd8 {[%clk 0:01:02]} 26. Rc6+ {[%clk 0:01:02]}  Kg7 {[%clk 0:00:54]} 27. Rxc4 {[%clk 0:00:51]}  Rd3+ {[%clk 0:00:41]} 28. Re3 {[%clk 0:00:51]}  Rxe3+ {[%clk 0:00:41]} 29. Kxe3 {[%clk 0:00:52]}  Rxa2 {[%clk 0:00:42]} 30. Rc7+ {[%clk 0:00:50]}  Kh6 {[%clk 0:00:42]} 31. h3 {[%clk 0:00:50]}  Ra3+ {[%clk 0:00:35]} 32. Kf2 {[%clk 0:00:49]}  a5 {[%clk 0:00:34]} 33. Ra7 {[%clk 0:00:49]}  a4 {[%clk 0:00:33]} 34. Kg2 {[%clk 0:00:46]}  Ra1 {[%clk 0:00:28]} 35. g4 {[%clk 0:00:45]}  fxg4 {[%clk 0:00:26]} 36. hxg4 {[%clk 0:00:46]}  a3 {[%clk 0:00:20]} 37. Kg3 {[%clk 0:00:37]}  Rg1+ {[%clk 0:00:17]} 38. Kh4 {[%clk 0:00:38]}  Rh1+ {[%clk 0:00:17]} 39. Kg3 {[%clk 0:00:38]}  Rg1+ {[%clk 0:00:16]} 40. Kf3 {[%clk 0:00:38]}  Rf1+ {[%clk 0:00:12]} 41. Ke3 {[%clk 0:00:33]}  Ra1 {[%clk 0:00:11]} 42. Kf3 {[%clk 0:00:22]}  g5 {[%clk 0:00:07]} 43. f5 {[%clk 0:00:16]}  Rf1+ {[%clk 0:00:03]} 44. Kg2 {[%clk 0:00:14]}  Ra1 {[%clk 0:00:02]} 45. Kf2 {[%clk 0:00:14]}  Ra2+ {[%clk 0:00:02]} 46. Kg3 {[%clk 0:00:14]}  Ra1 {[%clk 0:00:03]} 47. Kg2 {[%clk 0:00:13]}  Ra2+ {[%clk 0:00:04]} 48. Kf3 {[%clk 0:00:10]}  Ra1 {[%clk 0:00:05]} 49. Kf2 {[%clk 0:00:07]}  Ra2+ {[%clk 0:00:03]} 50. Ke3 {[%clk 0:00:07]}  Rh2 {[%clk 0:00:02]} 51. Kf3 {[%clk 0:00:03]}  a2 {[%clk 0:00:02]} 52. Kg3 {[%clk 0:00:03]}  Rb2 {[%clk 0:00:02]} 53. Kh3 {[%clk 0:00:04]}  Rb3+ {[%clk 0:00:02]} 54. Kg2 {[%clk 0:00:04]}  Rb2+ {[%clk 0:00:03]} 55. Kg3 {[%clk 0:00:05]}  Rc2 {[%clk 0:00:04]} 56. Kf3 {[%clk 0:00:05]}  Rc3+ {[%clk 0:00:03]} 57. Kf2 {[%clk 0:00:05]}  Rc4 {[%clk 0:00:02]} 58. Kg3 {[%clk 0:00:05]}  Rc2 {[%clk 0:00:02]} 59. Kh3 {[%clk 0:00:05]}  Rb2 {[%clk 0:00:02]} 60. Kg3 {[%clk 0:00:06]}  Rd2 {[%clk 0:00:03]} 61. Kf3 {[%clk 0:00:06]}  Rd3+ {[%clk 0:00:03]} 62. Kf2 {[%clk 0:00:04]}  Rd4 {[%clk 0:00:02]} 63. Kg3 {[%clk 0:00:04]}  Rd2 {[%clk 0:00:02]} 64. Ra6+ {[%clk 0:00:03]}  Kg7 {[%clk 0:00:02]} 65. Kf3 {[%clk 0:00:04]}  Rb2 {[%clk 0:00:02]} 66. Kg3 {[%clk 0:00:03]}  Kf7 {[%clk 0:00:02]} 67. Kf3 {[%clk 0:00:04]}  Ke7 {[%clk 0:00:03]} 68. Kg3 {[%clk 0:00:04]}  Kd7 {[%clk 0:00:03]} 69. Kf3 {[%clk 0:00:04]}  Kc7 {[%clk 0:00:04]} 70. f6 {[%clk 0:00:02]}  Kd7 {[%clk 0:00:04]} 71. Kg3 {[%clk 0:00:02]}  Ke8 {[%clk 0:00:04]} 72. Ra7 {[%clk 0:00:02]}  h6 {[%clk 0:00:04]} 73. Kf3 {[%clk 0:00:03]}  Kf8 {[%clk 0:00:04]} 74. Kg3 {[%clk 0:00:03]}  Rc2 {[%clk 0:00:04]} 75. Kf3 {[%clk 0:00:04]}  Rd2 {[%clk 0:00:04]} 76. Kg3 {[%clk 0:00:04]}  Rb2 {[%clk 0:00:04]} 77. Kf3 {[%clk 0:00:04]}  Kg8 {[%clk 0:00:05]} 78. Kg3 {[%clk 0:00:05]}  Rc2 {[%clk 0:00:05]} 79. Kf3 {[%clk 0:00:05]}  Rc3+ {[%clk 0:00:05]} 80. Kg2 {[%clk 0:00:05]}  Rc2+ {[%clk 0:00:02]} 81. Kg3 {[%clk 0:00:05]}  Rb2 {[%clk 0:00:02]} 82. Kf3 {[%clk 0:00:06]}  Rc2 {[%clk 0:00:02]} 83. Ke4 {[%clk 0:00:05]}  Rc5 {[%clk 0:00:03]} 84. Rxa2 {[%clk 0:00:04]}  Kf7 {[%clk 0:00:03]} 85. Ra6 {[%clk 0:00:05]}  Kg6 {[%clk 0:00:03]} 86. Rd6 {[%clk 0:00:05]}  Ra5 {[%clk 0:00:02]} 87. Kf3 {[%clk 0:00:04]}  Kf7 {[%clk 0:00:02]} 88. Rd7+ {[%clk 0:00:03]}  Kxf6 {[%clk 0:00:02]} 89. Rd6+ {[%clk 0:00:04]}  Kg7 {[%clk 0:00:02]} 90. Rd7+ {[%clk 0:00:04]}  Kf8 {[%clk 0:00:03]} 91. Rd6 {[%clk 0:00:05]}  Ra3+ {[%clk 0:00:03]} 92. Kg2 {[%clk 0:00:05]}  Ra4 {[%clk 0:00:03]} 93. Rxh6 {[%clk 0:00:05]}  Rxg4+ {[%clk 0:00:02]} 94. Kf3 {[%clk 0:00:05]}  Rf4+ {[%clk 0:00:03]} 95. Kg3 {[%clk 0:00:05]}  Ra4 {[%clk 0:00:03]} 96. Rg6 {[%clk 0:00:05]}  g4 {[%clk 0:00:03]} 97. Rxg4 {[%clk 0:00:05]}  Rxg4+ {[%clk 0:00:04]} 98. Kxg4 {[%clk 0:00:06]} 1/2-1/2


[Site "https://www.chess.com"]

[Event "Titled Tuesday Blitz January 03 Early 2023"]
[White "Zemlyanskii, Ivan"]
[Black "Paravyan, David"]
[WhiteFideId "24249971"]
[BlackFideId "4194985"]
[WhiteElo "2300"]
[BlackElo "2601"]
[Result "0-1"]
[Round "11"]
[TimeControl "180+2"]
[Date "2023.01.03"]
[WhiteClock "0:00:03"]
[BlackClock "0:01:58"]

1. d4 {[%clk 0:02:54]}  Nf6 {[%clk 0:02:56]} 2. c4 {[%clk 0:02:54]}  g6 {[%clk 0:02:56]} 3. h4 {[%clk 0:02:49]}  c6 {[%clk 0:02:55]} 4. Nc3 {[%clk 0:02:46]}  d5 {[%clk 0:02:55]} 5. cxd5 {[%clk 0:02:47]}  cxd5 {[%clk 0:02:55]} 6. Bf4 {[%clk 0:02:48]}  Nc6 {[%clk 0:02:55]} 7. e3 {[%clk 0:02:48]}  Bg7 {[%clk 0:02:54]} 8. Be2 {[%clk 0:02:47]}  O-O {[%clk 0:02:55]} 9. h5 {[%clk 0:02:44]}  Re8 {[%clk 0:02:55]} 10. h6 {[%clk 0:02:31]}  Bf8 {[%clk 0:02:55]} 11. Nf3 {[%clk 0:02:32]}  Bg4 {[%clk 0:02:54]} 12. Ne5 {[%clk 0:02:28]}  Bxe2 {[%clk 0:02:54]} 13. Qxe2 {[%clk 0:02:29]}  Nd7 {[%clk 0:02:53]} 14. Nd3 {[%clk 0:02:02]}  e6 {[%clk 0:02:52]} 15. O-O-O {[%clk 0:01:54]}  Qa5 {[%clk 0:02:45]} 16. Kb1 {[%clk 0:01:52]}  Rac8 {[%clk 0:02:44]} 17. Rc1 {[%clk 0:01:45]}  Qa6 {[%clk 0:02:42]} 18. Rhd1 {[%clk 0:01:31]}  Nb4 {[%clk 0:02:40]} 19. Nxb4 {[%clk 0:01:25]}  Qxe2 {[%clk 0:02:37]} 20. Nxe2 {[%clk 0:01:26]}  Bxb4 {[%clk 0:02:37]} 21. Rxc8 {[%clk 0:01:20]}  Rxc8 {[%clk 0:02:38]} 22. Rc1 {[%clk 0:01:20]}  Rxc1+ {[%clk 0:02:36]} 23. Nxc1 {[%clk 0:01:21]}  f6 {[%clk 0:02:36]} 24. f3 {[%clk 0:01:02]}  Kf7 {[%clk 0:02:35]} 25. Ne2 {[%clk 0:00:58]}  g5 {[%clk 0:02:35]} 26. Bg3 {[%clk 0:00:57]}  Kg6 {[%clk 0:02:35]} 27. a3 {[%clk 0:00:52]}  Bf8 {[%clk 0:02:33]} 28. e4 {[%clk 0:00:52]}  f5 {[%clk 0:02:29]} 29. exd5 {[%clk 0:00:41]}  exd5 {[%clk 0:02:30]} 30. Bc7 {[%clk 0:00:41]}  Bxh6 {[%clk 0:02:26]} 31. Nc3 {[%clk 0:00:41]}  Bg7 {[%clk 0:02:26]} 32. Nxd5 {[%clk 0:00:39]}  Bxd4 {[%clk 0:02:27]} 33. Kc2 {[%clk 0:00:34]}  Kf7 {[%clk 0:02:25]} 34. Bd8 {[%clk 0:00:29]}  h6 {[%clk 0:02:23]} 35. Ba5 {[%clk 0:00:15]}  Be5 {[%clk 0:02:22]} 36. Bd2 {[%clk 0:00:15]}  Ke6 {[%clk 0:02:21]} 37. Nb4 {[%clk 0:00:14]}  a6 {[%clk 0:02:12]} 38. Nd3 {[%clk 0:00:12]}  Bd6 {[%clk 0:02:12]} 39. b4 {[%clk 0:00:08]}  Ne5 {[%clk 0:02:10]} 40. Nxe5 {[%clk 0:00:05]}  Bxe5 {[%clk 0:02:10]} 41. Kd3 {[%clk 0:00:06]}  Kd5 {[%clk 0:02:10]} 42. a4 {[%clk 0:00:07]}  b5 {[%clk 0:02:08]} 43. axb5 {[%clk 0:00:08]}  axb5 {[%clk 0:02:08]} 44. Bc1 {[%clk 0:00:09]}  Bd6 {[%clk 0:02:04]} 45. Bd2 {[%clk 0:00:09]}  f4 {[%clk 0:02:03]} 46. Bc3 {[%clk 0:00:08]}  Bf8 {[%clk 0:02:02]} 47. Bf6 {[%clk 0:00:07]}  Bxb4 {[%clk 0:01:59]} 48. Bg7 {[%clk 0:00:05]}  h5 {[%clk 0:01:58]} 49. Bf6 {[%clk 0:00:06]}  g4 {[%clk 0:01:57]} 50. Bg5 {[%clk 0:00:06]}  Bd6 {[%clk 0:01:56]} 51. fxg4 {[%clk 0:00:04]}  hxg4 {[%clk 0:01:57]} 52. Bf6 {[%clk 0:00:04]}  b4 {[%clk 0:01:58]} 53. Bb2 {[%clk 0:00:04]}  Be5 {[%clk 0:01:58]} 54. Bc1 {[%clk 0:00:03]}  b3 {[%clk 0:01:58]} 0-1


[Site "https://www.chess.com"]

[Event "Titled Tuesday Blitz January 03 Early 2023"]
[White "Vokhidov, Shamsiddin"]
[Black "Narayanan, Srinath"]
[WhiteFideId "14204223"]
[BlackFideId "5018420"]
[WhiteElo "2586"]
[BlackElo "2559"]
[Result "1-0"]
[Round "11"]
[TimeControl "180+2"]
[Date "2023.01.03"]
[WhiteClock "0:01:11"]
[BlackClock "0:01:51"]

1. e4 {[%clk 0:03:00]}  c6 {[%clk 0:02:58]} 2. Nc3 {[%clk 0:03:01]}  d5 {[%clk 0:02:59]} 3. Nf3 {[%clk 0:03:01]}  dxe4 {[%clk 0:02:58]} 4. Nxe4 {[%clk 0:03:02]}  Nf6 {[%clk 0:02:56]} 5. Qe2 {[%clk 0:03:02]}  Nxe4 {[%clk 0:02:57]} 6. Qxe4 {[%clk 0:03:03]}  Nd7 {[%clk 0:02:56]} 7. Bc4 {[%clk 0:03:03]}  Nf6 {[%clk 0:02:56]} 8. Ne5 {[%clk 0:03:03]}  e6 {[%clk 0:02:57]} 9. Qe2 {[%clk 0:03:04]}  b5 {[%clk 0:02:57]} 10. Bd3 {[%clk 0:03:04]}  Qc7 {[%clk 0:02:56]} 11. a4 {[%clk 0:03:05]}  Bd6 {[%clk 0:02:54]} 12. Nxc6 {[%clk 0:03:05]}  b4 {[%clk 0:02:54]} 13. Nd4 {[%clk 0:03:05]}  a6 {[%clk 0:02:53]} 14. Nf5 {[%clk 0:03:05]}  O-O {[%clk 0:02:50]} 15. Nxd6 {[%clk 0:02:58]}  Qxd6 {[%clk 0:02:50]} 16. b3 {[%clk 0:02:57]}  Bb7 {[%clk 0:02:50]} 17. Bb2 {[%clk 0:02:57]}  Nd5 {[%clk 0:02:43]} 18. Qe5 {[%clk 0:02:52]}  Qxe5+ {[%clk 0:02:38]} 19. Bxe5 {[%clk 0:02:52]}  f6 {[%clk 0:02:39]} 20. Bg3 {[%clk 0:02:53]}  Rac8 {[%clk 0:02:38]} 21. O-O {[%clk 0:02:51]}  e5 {[%clk 0:02:36]} 22. f3 {[%clk 0:02:50]}  a5 {[%clk 0:02:36]} 23. Rfe1 {[%clk 0:02:43]}  Rfd8 {[%clk 0:02:36]} 24. Bc4 {[%clk 0:02:40]}  Kf8 {[%clk 0:02:35]} 25. Bf2 {[%clk 0:02:37]}  Rd7 {[%clk 0:02:33]} 26. Rad1 {[%clk 0:02:32]}  Bc6 {[%clk 0:02:27]} 27. Bc5+ {[%clk 0:02:26]}  Kf7 {[%clk 0:02:18]} 28. d4 {[%clk 0:02:23]}  exd4 {[%clk 0:02:18]} 29. Rxd4 {[%clk 0:02:22]}  Kg6 {[%clk 0:02:19]} 30. Red1 {[%clk 0:02:14]}  Rcd8 {[%clk 0:02:19]} 31. Bxd5 {[%clk 0:01:53]}  Rxd5 {[%clk 0:02:13]} 32. Rxd5 {[%clk 0:01:53]}  Rxd5 {[%clk 0:02:14]} 33. Rxd5 {[%clk 0:01:53]}  Bxd5 {[%clk 0:02:15]} 34. Kf2 {[%clk 0:01:48]}  Be6 {[%clk 0:02:11]} 35. Ke3 {[%clk 0:01:48]}  Bf5 {[%clk 0:02:11]} 36. Kd2 {[%clk 0:01:48]}  h5 {[%clk 0:02:09]} 37. Bb6 {[%clk 0:01:48]}  h4 {[%clk 0:02:10]} 38. Bxa5 {[%clk 0:01:48]}  h3 {[%clk 0:02:10]} 39. gxh3 {[%clk 0:01:49]}  Kh5 {[%clk 0:02:11]} 40. Bxb4 {[%clk 0:01:49]}  Kh4 {[%clk 0:02:12]} 41. Bf8 {[%clk 0:01:48]}  g6 {[%clk 0:02:10]} 42. Be7 {[%clk 0:01:49]}  Kxh3 {[%clk 0:02:11]} 43. Bxf6 {[%clk 0:01:48]}  Kxh2 {[%clk 0:02:12]} 44. f4 {[%clk 0:01:48]}  Kg3 {[%clk 0:02:12]} 45. Be5 {[%clk 0:01:49]}  Kf3 {[%clk 0:02:12]} 46. c4 {[%clk 0:01:48]}  Ke4 {[%clk 0:02:12]} 47. Bb8 {[%clk 0:01:47]}  Kd4 {[%clk 0:02:13]} 48. Bc7 {[%clk 0:01:43]}  Bc8 {[%clk 0:02:10]} 49. a5 {[%clk 0:01:41]}  Bb7 {[%clk 0:02:10]} 50. Bb6+ {[%clk 0:01:40]}  Ke4 {[%clk 0:02:10]} 51. Be3 {[%clk 0:01:37]}  Ba6 {[%clk 0:02:11]} 52. Ke2 {[%clk 0:01:33]}  Bb7 {[%clk 0:02:11]} 53. Bc1 {[%clk 0:01:31]}  Kd4 {[%clk 0:02:10]} 54. Kd2 {[%clk 0:01:32]}  Ba6 {[%clk 0:02:04]} 55. Ba3 {[%clk 0:01:31]}  Ke4 {[%clk 0:02:02]} 56. Kc3 {[%clk 0:01:27]}  Kxf4 {[%clk 0:02:01]} 57. b4 {[%clk 0:01:28]}  Ke4 {[%clk 0:01:58]} 58. b5 {[%clk 0:01:28]}  Bc8 {[%clk 0:01:58]} 59. a6 {[%clk 0:01:19]}  g5 {[%clk 0:01:59]} 60. Bd6 {[%clk 0:01:14]}  g4 {[%clk 0:01:59]} 61. Bh2 {[%clk 0:01:13]}  Ke3 {[%clk 0:01:51]} 62. c5 {[%clk 0:01:11]}  Ke4 {[%clk 0:01:51]} 63. c6 {[%clk 0:01:11]} 1-0


[Site "https://www.chess.com"]

[Event "Titled Tuesday Blitz January 03 Early 2023"]
[White "Puranik, Abhimanyu"]
[Black "Zhigalko, Sergei"]
[WhiteFideId "5061245"]
[BlackFideId "13502956"]
[WhiteElo "2613"]
[BlackElo "2572"]
[Result "1-0"]
[Round "11"]
[TimeControl "180+2"]
[Date "2023.01.03"]
[WhiteClock "0:00:13"]
[BlackClock "0:00:04"]

1. Nf3 {[%clk 0:02:44]}  d5 {[%clk 0:02:59]} 2. c4 {[%clk 0:02:43]}  d4 {[%clk 0:03:00]} 3. b4 {[%clk 0:02:43]}  Bg4 {[%clk 0:02:59]} 4. d3 {[%clk 0:02:38]}  Bxf3 {[%clk 0:02:55]} 5. gxf3 {[%clk 0:02:37]}  e5 {[%clk 0:02:55]} 6. Qa4+ {[%clk 0:02:35]}  Nd7 {[%clk 0:02:55]} 7. Bg2 {[%clk 0:02:34]}  a5 {[%clk 0:02:49]} 8. b5 {[%clk 0:02:28]}  Nc5 {[%clk 0:02:34]} 9. Qc2 {[%clk 0:02:28]}  Bd6 {[%clk 0:02:24]} 10. Nd2 {[%clk 0:02:26]}  Nf6 {[%clk 0:02:21]} 11. Ne4 {[%clk 0:02:25]}  Nfd7 {[%clk 0:02:21]} 12. f4 {[%clk 0:02:16]}  O-O {[%clk 0:01:56]} 13. h4 {[%clk 0:01:46]}  Nxe4 {[%clk 0:01:46]} 14. Bxe4 {[%clk 0:01:46]}  exf4 {[%clk 0:01:33]} 15. Bxb7 {[%clk 0:01:45]}  Rb8 {[%clk 0:01:32]} 16. Bd5 {[%clk 0:01:43]}  Qe7 {[%clk 0:01:30]} 17. Bb2 {[%clk 0:01:38]}  Qe5 {[%clk 0:00:59]} 18. O-O-O {[%clk 0:01:23]}  Rfe8 {[%clk 0:00:58]} 19. Bc6 {[%clk 0:01:06]}  Rbd8 {[%clk 0:00:50]} 20. Rde1 {[%clk 0:01:04]}  Bb4 {[%clk 0:00:48]} 21. Reg1 {[%clk 0:01:04]}  h6 {[%clk 0:00:26]} 22. Rg4 {[%clk 0:00:55]}  Qxe2 {[%clk 0:00:17]} 23. Qxe2 {[%clk 0:00:42]}  Rxe2 {[%clk 0:00:17]} 24. Bxd4 {[%clk 0:00:41]}  Ne5 {[%clk 0:00:17]} 25. Bxe5 {[%clk 0:00:40]}  Rxe5 {[%clk 0:00:16]} 26. Bd5 {[%clk 0:00:33]}  Re2 {[%clk 0:00:13]} 27. Rxf4 {[%clk 0:00:33]}  Rxa2 {[%clk 0:00:06]} 28. Kb1 {[%clk 0:00:32]}  Ra3 {[%clk 0:00:03]} 29. Rg1 {[%clk 0:00:27]}  Kh8 {[%clk 0:00:01]} 30. Rxf7 {[%clk 0:00:24]}  Bc3 {[%clk 0:00:02]} 31. Kc2 {[%clk 0:00:23]}  Be5 {[%clk 0:00:02]} 32. Re1 {[%clk 0:00:17]}  Ra2+ {[%clk 0:00:02]} 33. Kb3 {[%clk 0:00:17]}  Rb2+ {[%clk 0:00:02]} 34. Ka3 {[%clk 0:00:18]}  Bc3 {[%clk 0:00:03]} 35. Re3 {[%clk 0:00:11]}  Rd2 {[%clk 0:00:02]} 36. h5 {[%clk 0:00:10]}  Bb4+ {[%clk 0:00:01]} 37. Kb3 {[%clk 0:00:11]}  Bc5 {[%clk 0:00:01]} 38. Ref3 {[%clk 0:00:11]}  Bd4 {[%clk 0:00:02]} 39. Rf8+ {[%clk 0:00:11]}  Rxf8 {[%clk 0:00:02]} 40. Rxf8+ {[%clk 0:00:11]}  Kh7 {[%clk 0:00:03]} 41. Bg8+ {[%clk 0:00:12]}  Kh8 {[%clk 0:00:03]} 42. Bf7+ {[%clk 0:00:12]}  Kh7 {[%clk 0:00:04]} 43. Bg6# {[%clk 0:00:13]} 1-0


[Site "https://www.chess.com"]

[Event "Titled Tuesday Blitz January 03 Early 2023"]
[White "Bacrot, Etienne"]
[Black "Deac, Bogdan-Daniel"]
[WhiteFideId "605506"]
[BlackFideId "1226380"]
[WhiteElo "2667"]
[BlackElo "2700"]
[Result "1/2-1/2"]
[Round "11"]
[TimeControl "180+2"]
[Date "2023.01.03"]
[WhiteClock "0:00:09"]
[BlackClock "0:00:30"]

1. e4 {[%clk 0:02:56]}  c5 {[%clk 0:02:59]} 2. Nf3 {[%clk 0:02:56]}  d6 {[%clk 0:03:00]} 3. Bb5+ {[%clk 0:02:56]}  Nd7 {[%clk 0:02:59]} 4. O-O {[%clk 0:02:54]}  a6 {[%clk 0:02:58]} 5. Bd3 {[%clk 0:02:54]}  Ngf6 {[%clk 0:02:59]} 6. Re1 {[%clk 0:02:55]}  e6 {[%clk 0:02:59]} 7. c3 {[%clk 0:02:55]}  b5 {[%clk 0:02:58]} 8. Bc2 {[%clk 0:02:53]}  c4 {[%clk 0:02:58]} 9. d4 {[%clk 0:02:45]}  cxd3 {[%clk 0:02:58]} 10. Qxd3 {[%clk 0:02:45]}  Bb7 {[%clk 0:02:56]} 11. a4 {[%clk 0:02:43]}  Nc5 {[%clk 0:02:49]} 12. Qd1 {[%clk 0:02:42]}  Bxe4 {[%clk 0:02:39]} 13. axb5 {[%clk 0:02:26]}  axb5 {[%clk 0:02:37]} 14. Rxa8 {[%clk 0:02:26]}  Qxa8 {[%clk 0:02:37]} 15. Na3 {[%clk 0:02:26]}  Bxf3 {[%clk 0:02:30]} 16. gxf3 {[%clk 0:02:20]}  Qb8 {[%clk 0:02:18]} 17. b4 {[%clk 0:02:15]}  Ncd7 {[%clk 0:02:14]} 18. Qe2 {[%clk 0:02:03]}  d5 {[%clk 0:02:11]} 19. Qxb5 {[%clk 0:02:01]}  Qc7 {[%clk 0:02:05]} 20. Bg5 {[%clk 0:01:08]}  Be7 {[%clk 0:02:03]} 21. Bxf6 {[%clk 0:01:03]}  Bxf6 {[%clk 0:02:02]} 22. Ba4 {[%clk 0:01:01]}  Ke7 {[%clk 0:02:01]} 23. Qxd5 {[%clk 0:00:58]}  Nb6 {[%clk 0:02:01]} 24. Qc6 {[%clk 0:00:32]}  Qxc6 {[%clk 0:01:39]} 25. Bxc6 {[%clk 0:00:33]}  Bxc3 {[%clk 0:01:40]} 26. Rb1 {[%clk 0:00:34]}  Rc8 {[%clk 0:01:38]} 27. b5 {[%clk 0:00:27]}  Rd8 {[%clk 0:01:38]} 28. Nc2 {[%clk 0:00:26]}  Rd2 {[%clk 0:01:35]} 29. Ne3 {[%clk 0:00:21]}  Bd4 {[%clk 0:01:35]} 30. Re1 {[%clk 0:00:21]}  Kd6 {[%clk 0:01:27]} 31. Kf1 {[%clk 0:00:20]}  f5 {[%clk 0:01:27]} 32. Re2 {[%clk 0:00:17]}  Rd3 {[%clk 0:01:27]} 33. Nc2 {[%clk 0:00:14]}  Bc5 {[%clk 0:01:24]} 34. Ne1 {[%clk 0:00:14]}  Rd1 {[%clk 0:01:22]} 35. Kg2 {[%clk 0:00:14]}  Nc4 {[%clk 0:01:11]} 36. Nc2 {[%clk 0:00:14]}  g5 {[%clk 0:01:04]} 37. Be8 {[%clk 0:00:13]}  Ne5 {[%clk 0:00:57]} 38. h3 {[%clk 0:00:12]}  Nd3 {[%clk 0:00:57]} 39. Ne3 {[%clk 0:00:06]}  Ne1+ {[%clk 0:00:51]} 40. Kf1 {[%clk 0:00:05]}  Bxe3 {[%clk 0:00:35]} 41. Rxe1 {[%clk 0:00:06]}  Rxe1+ {[%clk 0:00:35]} 42. Kxe1 {[%clk 0:00:07]}  Bb6 {[%clk 0:00:36]} 43. Ke2 {[%clk 0:00:07]}  Ke5 {[%clk 0:00:36]} 44. Bd7 {[%clk 0:00:07]}  h5 {[%clk 0:00:35]} 45. Bc8 {[%clk 0:00:08]}  h4 {[%clk 0:00:35]} 46. Kf1 {[%clk 0:00:08]}  Kf6 {[%clk 0:00:33]} 47. Kg2 {[%clk 0:00:08]}  e5 {[%clk 0:00:33]} 48. Bb7 {[%clk 0:00:08]}  Ke7 {[%clk 0:00:33]} 49. Bc8 {[%clk 0:00:08]}  Kf6 {[%clk 0:00:33]} 50. Bb7 {[%clk 0:00:09]}  Ke6 {[%clk 0:00:33]} 51. Bc8+ {[%clk 0:00:09]}  Kf6 {[%clk 0:00:30]} 1/2-1/2


[Site "https://www.chess.com"]

[Event "Titled Tuesday Blitz January 03 Early 2023"]
[White "Jones, Gawain C B"]
[Black "Mekhitarian, Krikor Sevag"]
[WhiteFideId "409561"]
[BlackFideId "2107660"]
[WhiteElo "2618"]
[BlackElo "2537"]
[Result "1-0"]
[Round "11"]
[TimeControl "180+2"]
[Date "2023.01.03"]
[WhiteClock "0:01:35"]
[BlackClock "0:00:27"]

1. d4 {[%clk 0:03:00]}  Nf6 {[%clk 0:02:59]} 2. Nf3 {[%clk 0:03:00]}  g6 {[%clk 0:02:58]} 3. Nbd2 {[%clk 0:03:00]}  d5 {[%clk 0:02:53]} 4. b3 {[%clk 0:03:00]}  Bg7 {[%clk 0:02:53]} 5. Bb2 {[%clk 0:03:00]}  O-O {[%clk 0:02:53]} 6. e3 {[%clk 0:03:01]}  Nbd7 {[%clk 0:02:31]} 7. Be2 {[%clk 0:02:52]}  c5 {[%clk 0:02:29]} 8. O-O {[%clk 0:02:52]}  b6 {[%clk 0:02:28]} 9. dxc5 {[%clk 0:02:47]}  Nxc5 {[%clk 0:02:28]} 10. c4 {[%clk 0:02:39]}  Bb7 {[%clk 0:02:26]} 11. Rc1 {[%clk 0:02:39]}  Rc8 {[%clk 0:02:24]} 12. b4 {[%clk 0:02:37]}  Ncd7 {[%clk 0:02:16]} 13. Qb3 {[%clk 0:02:34]}  Rc7 {[%clk 0:02:11]} 14. Nd4 {[%clk 0:02:26]}  Qa8 {[%clk 0:02:01]} 15. Nb5 {[%clk 0:02:21]}  Rcc8 {[%clk 0:01:55]} 16. Bf3 {[%clk 0:02:12]}  a6 {[%clk 0:01:45]} 17. Na3 {[%clk 0:02:02]}  dxc4 {[%clk 0:01:27]} 18. Naxc4 {[%clk 0:02:02]}  Bxf3 {[%clk 0:01:24]} 19. Nxf3 {[%clk 0:02:02]}  Qb7 {[%clk 0:01:20]} 20. h3 {[%clk 0:01:59]}  Rc7 {[%clk 0:01:17]} 21. Nce5 {[%clk 0:01:58]}  Rfc8 {[%clk 0:01:16]} 22. Qxf7+ {[%clk 0:01:53]}  Kh8 {[%clk 0:01:04]} 23. Rxc7 {[%clk 0:01:45]}  Qxc7 {[%clk 0:01:02]} 24. Qe6 {[%clk 0:01:38]}  Nxe5 {[%clk 0:00:56]} 25. Nxe5 {[%clk 0:01:38]}  h6 {[%clk 0:00:26]} 26. Nxg6+ {[%clk 0:01:35]}  Kh7 {[%clk 0:00:27]} 1-0


[Site "https://www.chess.com"]